fUST/lending_fUST_20260525
["ID","MTS","AMOUNT","RATE_DAILY","PERIOD"]
[422930996,1779649748000,-500.0,8.219e-05,2]
[422930993,1779649748000,-500.0,8.219e-05,2]
[422930997,1779649748000,-501.41289747,8.219e-05,2]
[422931000,1779649748000,-504.06864213,8.219e-05,2]
[422931001,1779649748000,-500.0,8.219e-05,2]
[422931005,1779649748000,-500.0,8.219e-05,2]
[422930998,1779649748000,-500.40333241,8.219e-05,2]
[422931018,1779649749000,-500.0,8.219e-05,2]
[422931017,1779649749000,-500.0,8.219e-05,2]
[422931021,1779649749000,-473.90766844,8.219e-05,2]
[422931016,1779649749000,-500.0,8.219e-05,2]
[422931019,1779649749000,-500.43033136,8.219e-05,2]
[422931020,1779649749000,-577.1865748,8.219e-05,2]
[422931022,1779649749000,-500.46111426,8.219e-05,2]
[422931023,1779649749000,-500.0,8.219e-05,2]
[422931030,1779649749000,-500.0,8.219e-05,2]
[422931024,1779649749000,-624.81317788,8.219e-05,2]
[422931026,1779649749000,-501.29071144,8.219e-05,2]
[422931027,1779649749000,-500.60145046,8.219e-05,2]
[422931029,1779649749000,-500.0,8.219e-05,2]
[422931028,1779649749000,-500.0,8.219e-05,2]
[422931031,1779649749000,-500.0,8.219e-05,2]
[422931032,1779649749000,-73.23947792,8.219e-05,2]
[422931025,1779649749000,-500.33451948,8.219e-05,2]
[422931044,1779649760000,-500.0,8.219e-05,2]
[422931047,1779649760000,-500.0,8.219e-05,2]
[422931048,1779649760000,-500.0,8.219e-05,2]
[422931050,1779649760000,-500.0,8.219e-05,2]
[422931053,1779649760000,-500.0,8.219e-05,2]
[422931052,1779649760000,-500.0,8.219e-05,2]
[422931049,1779649760000,-500.54116007,8.219e-05,2]
[422931045,1779649760000,-500.0,8.219e-05,2]
[422931051,1779649760000,-500.0,8.219e-05,2]
[422931043,1779649760000,-500.41768486,8.219e-05,2]
[422931040,1779649760000,-500.0,8.219e-05,2]
[422931041,1779649760000,-500.0,8.219e-05,2]
[422931039,1779649760000,-500.0,8.219e-05,2]
[422931054,1779649760000,-500.0,8.219e-05,2]
[422931038,1779649760000,-500.0,8.219e-05,2]
[422931037,1779649760000,-500.23966276,8.219e-05,2]
[422931036,1779649760000,-500.62755823,8.219e-05,2]
[422931034,1779649760000,-63.14518397,8.219e-05,2]
[422931035,1779649760000,-500.0,8.219e-05,2]
[422931033,1779649760000,-363.61533811,8.219e-05,2]
[422931042,1779649760000,-500.8791587,8.219e-05,2]
[422931056,1779649760000,-500.0,8.219e-05,2]
[422931046,1779649760000,-500.0,8.219e-05,2]
[422931057,1779649760000,-500.0,8.219e-05,2]
[422931079,1779649760000,-166.75,8.493e-05,2]
[422931055,1779649760000,-378.78360246,8.219e-05,2]
[422931075,1779649760000,-373.02,8.493e-05,2]
[422931078,1779649760000,-500.0,8.493e-05,2]
[422931077,1779649760000,-236.79,8.493e-05,2]
[422931076,1779649760000,-500.0,8.493e-05,2]
[422931074,1779649760000,-500.0,8.493e-05,2]
[422931073,1779649760000,-201.81245521,8.493e-05,2]
[422931071,1779649760000,-114.19754479,8.493e-05,2]
[422931070,1779649760000,-319.64,8.493e-05,2]
[422931068,1779649760000,-500.0,8.493e-05,2]
[422931072,1779649760000,-500.0,8.219e-05,2]
[422931067,1779649760000,-500.0,8.493e-05,2]
[422931059,1779649760000,-300.90865914,8.493e-05,2]
[422931069,1779649760000,-430.05,8.493e-05,2]
[422931061,1779649760000,-500.0,8.493e-05,2]
[422931063,1779649760000,-500.0,8.493e-05,2]
[422931062,1779649760000,-187.59,8.493e-05,2]
[422931058,1779649760000,-1000.0,8.306e-05,2]
[422931064,1779649760000,-500.0,8.493e-05,2]
[422931065,1779649760000,-229.25,8.493e-05,2]
[422931066,1779649760000,-500.0,8.493e-05,2]
[422931060,1779649760000,-500.0,8.493e-05,2]
[422931093,1779649761000,-161.82,8.493e-05,2]
[422931101,1779649761000,-316.12,8.493e-05,2]
[422931105,1779649761000,-280.7134885,8.493e-05,2]
[422931104,1779649761000,-188.65829702,8.493e-05,2]
[422931100,1779649761000,-500.0,8.493e-05,2]
[422931099,1779649761000,-404.93,8.493e-05,2]
[422931096,1779649761000,-376.74,8.493e-05,2]
[422931098,1779649761000,-500.0,8.493e-05,2]
[422931097,1779649761000,-500.0,8.493e-05,2]
[422931095,1779649761000,-322.69,8.493e-05,2]
[422931091,1779649761000,-250.09,8.493e-05,2]
[422931094,1779649761000,-317.49,8.493e-05,2]
[422931081,1779649761000,-273.59,8.493e-05,2]
[422931090,1779649761000,-500.0,8.493e-05,2]
[422931089,1779649761000,-454.17,8.493e-05,2]
[422931088,1779649761000,-213.07,8.493e-05,2]
[422931085,1779649761000,-500.0,8.493e-05,2]
[422931086,1779649761000,-168.26,8.493e-05,2]
[422931087,1779649761000,-334.93,8.493e-05,2]
[422931084,1779649761000,-500.0,8.493e-05,2]
[422931082,1779649761000,-573.83,8.493e-05,2]
[422931083,1779649761000,-161.5,8.493e-05,2]
[422931080,1779649761000,-166.75,8.493e-05,2]
[422931102,1779649761000,-396.11,8.493e-05,2]
[422931092,1779649761000,-500.0,8.493e-05,2]
[422931103,1779649761000,-375.56,8.493e-05,2]
[422931126,1779649761000,-175.8,8.767e-05,2]
[422931108,1779649761000,-294.0364887,8.493e-05,2]
[422931133,1779649761000,-500.0,9.041e-05,2]
[422931132,1779649761000,-593.13,9.041e-05,2]
[422931130,1779649761000,-500.0,9.041e-05,2]
[422931131,1779649761000,-500.0,9.041e-05,2]
[422931128,1779649761000,-606.4,9.041e-05,2]
[422931129,1779649761000,-398.74,9.041e-05,2]
[422931106,1779649761000,-380.6,8.493e-05,2]
[422931125,1779649761000,-500.0,8.767e-05,2]
[422931124,1779649761000,-500.0,8.767e-05,2]
[422931122,1779649761000,-302.73,8.767e-05,2]
[422931123,1779649761000,-500.0,8.767e-05,2]
[422931120,1779649761000,-500.0,8.767e-05,2]
[422931127,1779649761000,-157.21,8.767e-05,2]
[422931119,1779649761000,-355.91,8.767e-05,2]
[422931117,1779649761000,-492.63,8.767e-05,2]
[422931109,1779649761000,-168.62,8.493e-05,2]
[422931107,1779649761000,-519.04401725,8.493e-05,2]
[422931110,1779649761000,-434.45,8.493e-05,2]
[422931113,1779649761000,-500.0,8.767e-05,2]
[422931111,1779649761000,-268.90811884,8.493e-05,2]
[422931116,1779649761000,-500.0,8.767e-05,2]
[422931114,1779649761000,-305.55,8.767e-05,2]
[422931115,1779649761000,-373.05,8.767e-05,2]
[422931121,1779649761000,-500.0,8.767e-05,2]
[422931118,1779649761000,-500.0,8.767e-05,2]
[422931112,1779649761000,-500.0,8.767e-05,2]
[422931139,1779649762000,-244.0,9.137e-05,2]
[422931148,1779649762000,-176.09,9.589e-05,2]
[422931144,1779649762000,-500.0,9.315e-05,2]
[422931138,1779649762000,-1000.0,9.137e-05,2]
[422931140,1779649762000,-273.25304223,9.156e-05,7]
[422931134,1779649762000,-480.23,9.041e-05,2]
[422931141,1779649762000,-201.31,9.315e-05,2]
[422931135,1779649762000,-500.0,9.041e-05,2]
[422931147,1779649762000,-500.0,9.589e-05,2]
[422931136,1779649762000,-434.66993479,9.041e-05,2]
[422931142,1779649762000,-500.0,9.315e-05,2]
[422931145,1779649762000,-228.9,9.315e-05,2]
[422931137,1779649762000,-500.0,9.041e-05,2]
[422931146,1779649762000,-500.0,9.589e-05,2]
[422931159,1779649762000,-515.56411036,0.00011055,2]
[422931154,1779649762000,-505.77,0.00010136,2]
[422931157,1779649762000,-211.32103588,0.00010959,7]
[422931158,1779649762000,-1000.0,0.00011055,2]
[422931155,1779649762000,-500.0,0.00010136,2]
[422931143,1779649762000,-500.0,9.315e-05,2]
[422931153,1779649762000,-492.0,0.0001005,2]
[422931152,1779649762000,-1000.0,0.0001005,2]
[422931149,1779649762000,-500.0,9.863e-05,2]
[422931151,1779649762000,-294.08052676,0.00010015,2]
[422931150,1779649762000,-500.0,9.863e-05,2]
[422931156,1779649762000,-603.69,0.0001041,2]
[422931160,1779649773000,-500.0,8.219e-05,2]
[422931161,1779649773000,-514.66,8.219e-05,2]
[422931162,1779649773000,-275.43588964,0.00011055,2]
[422931163,1779649773000,-434.66993476,0.00011339,2]
[422931164,1779649773000,-333.00294942,0.00012015,2]
[422931165,1779649773000,-1000.0,0.00012161,2]
[422931168,1779649773000,-2901.4,0.00012876,2]
[422931166,1779649773000,-1000.0,0.00012161,2]
[422931169,1779649773000,-2901.4,0.00012876,2]
[422931172,1779649773000,-1000.0,0.00013377,2]
[422931171,1779649773000,-1000.0,0.00013377,2]
[422931173,1779649773000,-579.0,0.00013377,2]
[422931174,1779649773000,2833.03038777,8.219e-05,2]
[422931175,1779649773000,500.0,8.219e-05,2]
[422931167,1779649773000,-500.0,0.00012305,2]
[422931170,1779649773000,-203.69212999,0.00012904,3]
[422931177,1779649781000,637.1,8.493e-05,2]
[422931176,1779649781000,500.0,8.219e-05,2]
[422931179,1779649789000,500.0,8.219e-05,2]
[422931180,1779649789000,211.64382407,8.219e-05,2]
[422931178,1779649789000,500.0,8.219e-05,2]
[422931181,1779649792000,500.0,8.219e-05,2]
[422931182,1779649802000,500.0,8.219e-05,2]
[422931183,1779649809000,500.0,8.219e-05,2]
[422931203,1779649825000,570.26076171,8.218e-05,2]
[422931184,1779649825000,-1000.0,0.00013699,2]
[422931185,1779649825000,500.0,8.219e-05,2]
[422931186,1779649825000,481.63,8.493e-05,2]
[422931204,1779649825000,570.26076171,8.218e-05,2]
[422931187,1779649825000,570.26076171,8.218e-05,2]
[422931189,1779649825000,570.26076171,8.218e-05,2]
[422931190,1779649825000,570.26076171,8.218e-05,2]
[422931191,1779649825000,570.26076171,8.218e-05,2]
[422931192,1779649825000,570.26076171,8.218e-05,2]
[422931188,1779649825000,570.26076171,8.218e-05,2]
[422931194,1779649825000,570.26076171,8.218e-05,2]
[422931196,1779649825000,570.26076171,8.218e-05,2]
[422931195,1779649825000,570.26076171,8.218e-05,2]
[422931198,1779649825000,570.26076171,8.218e-05,2]
[422931197,1779649825000,570.26076171,8.218e-05,2]
[422931199,1779649825000,570.26076171,8.218e-05,2]
[422931200,1779649825000,570.26076171,8.218e-05,2]
[422931201,1779649825000,570.26076171,8.218e-05,2]
[422931202,1779649825000,570.26076171,8.218e-05,2]
[422931193,1779649825000,570.26076171,8.218e-05,2]
[422931205,1779649826000,570.26076171,8.218e-05,2]
[422931207,1779649826000,570.26076171,8.218e-05,2]
[422931206,1779649826000,570.26076171,8.218e-05,2]
[422931233,1779649832000,-648.0,0.00014279,2]
[422931235,1779649832000,-383.05325761,0.00014326,2]
[422931234,1779649832000,-1426.162,0.00014279,2]
[422931231,1779649832000,-161.73758927,0.00014242,2]
[422931229,1779649832000,-121.59530684,0.00014015,2]
[422931227,1779649832000,-250.33006524,0.00014015,2]
[422931225,1779649832000,-434.66993476,0.00013736,2]
[422931236,1779649833000,500.0,8.219e-05,2]
[422931259,1779649838000,-151.5,0.00014726,14]
[422931258,1779649838000,-6.98897517,0.00014326,2]
[422931261,1779649838000,-156.66039112,0.00014726,14]
[422931262,1779649838000,-194.896905,0.00015068,2]
[422931260,1779649838000,-151.5,0.00014726,14]
[422931383,1779649839000,-500.0,0.00017684,2]
[422931319,1779649839000,-511.54722999,0.00017353,2]
[422931325,1779649839000,-150.66,0.000174,2]
[422931327,1779649839000,-151.6,0.000174,2]
[422931329,1779649839000,-151.51,0.000174,2]
[422931333,1779649839000,-150.98,0.000174,2]
[422931331,1779649839000,-150.98,0.000174,2]
[422931347,1779649839000,-511.54722999,0.00017542,2]
[422931335,1779649839000,-511.54722999,0.00017466,2]
[422931337,1779649839000,-150.66,0.000175,2]
[422931349,1779649839000,-2165.88484396,0.000176,2]
[422931341,1779649839000,-200.0,0.000175,10]
[422931339,1779649839000,-150.66,0.000175,2]
[422931345,1779649839000,-161.85645628,0.00017535,5]
[422931374,1779649839000,-500.0,0.00017684,2]
[422931351,1779649839000,-151.54,0.000176,2]
[422931353,1779649839000,-150.66,0.000176,2]
[422931355,1779649839000,-1192.51825709,0.00017678,8]
[422931357,1779649839000,-204.16962901,0.00017678,8]
[422931359,1779649839000,-159.4457091,0.00017684,2]
[422931372,1779649839000,-500.0,0.00017684,2]
[422931370,1779649839000,-500.0,0.00017684,2]
[422931382,1779649839000,-500.0,0.00017684,2]
[422931362,1779649839000,-340.5542909,0.00017684,2]
[422931364,1779649839000,-500.0,0.00017684,2]
[422931366,1779649839000,-500.0,0.00017684,2]
[422931368,1779649839000,-348.15067685,0.00017684,2]
[422931376,1779649839000,-500.0,0.00017684,2]
[422931380,1779649839000,-500.0,0.00017684,2]
[422931317,1779649839000,-151.31,0.000173,2]
[422931343,1779649839000,-600.0,0.00017523,2]
[422931321,1779649839000,-511.54722999,0.00017365,2]
[422931323,1779649839000,-151.54,0.000174,2]
[422931378,1779649839000,-500.0,0.00017684,2]
[422931268,1779649839000,-3587.422447,0.00016,2]
[422931270,1779649839000,-410.84779474,0.00016015,2]
[422931271,1779649839000,-434.66993476,0.00016134,2]
[422931273,1779649839000,-152.0,0.00016328,7]
[422931265,1779649839000,-170.775,0.00015881,2]
[422931275,1779649839000,-152.0,0.00016369,7]
[422931266,1779649839000,-500.0,0.00015893,5]
[422931264,1779649839000,-150.0,0.00015179,2]
[422931279,1779649839000,-610.88504874,0.00016438,2]
[422931277,1779649839000,-500.0,0.00016438,2]
[422931283,1779649839000,-767.0,0.00016906,2]
[422931289,1779649839000,-767.0,0.00016906,2]
[422931281,1779649839000,-228.9042008,0.00016836,2]
[422931287,1779649839000,-767.0,0.00016906,2]
[422931285,1779649839000,-767.0,0.00016906,2]
[422931294,1779649839000,-767.0,0.00016906,2]
[422931301,1779649839000,-8934.2267828,0.0001718,2]
[422931292,1779649839000,-767.0,0.00016906,2]
[422931291,1779649839000,-767.0,0.00016906,2]
[422931296,1779649839000,-767.0,0.00016906,2]
[422931299,1779649839000,-767.033,0.00016906,2]
[422931298,1779649839000,-767.0,0.00016906,2]
[422931303,1779649839000,-151.54,0.000172,2]
[422931307,1779649839000,-3172.64504257,0.00017205,5]
[422931305,1779649839000,-150.66,0.000172,2]
[422931309,1779649839000,-646.976,0.00017279,2]
[422931311,1779649839000,-2000.0,0.000173,3]
[422931313,1779649839000,-150.66,0.000173,2]
[422931315,1779649839000,-150.66,0.000173,2]
[422931385,1779649839000,-500.0,0.00017684,2]
[422931389,1779649839000,-500.0,0.00017684,2]
[422931395,1779649839000,-500.0,0.00017684,2]
[422931450,1779649839000,-471.92,0.00017721,2]
[422931460,1779649839000,-471.92,0.00017748,2]
[422931462,1779649839000,-471.92,0.00017755,2]
[422931464,1779649839000,-511.54722999,0.00017756,2]
[422931466,1779649839000,-511.54722999,0.00017759,2]
[422931470,1779649839000,-471.92,0.00017769,2]
[422931471,1779649839000,-511.54722999,0.00017773,2]
[422931475,1779649839000,-471.92,0.00017783,2]
[422931473,1779649839000,-471.92,0.00017776,2]
[422931477,1779649839000,-511.54722999,0.00017789,2]
[422931479,1779649839000,-471.92,0.0001779,2]
[422931468,1779649839000,-471.92,0.00017762,2]
[422931484,1779649839000,-1000.0,0.00017799,7]
[422931488,1779649839000,-5077.43394479,0.000178,10]
[422931446,1779649839000,-471.92,0.00017707,2]
[422931482,1779649839000,-83907.0,0.00017798,2]
[422931491,1779649839000,-33775.49785808,0.000178,10]
[422931494,1779649839000,-3002.48569093,0.000178,10]
[422931497,1779649839000,-151.54,0.000178,2]
[422931499,1779649839000,-151.6,0.000178,2]
[422931504,1779649839000,-150.98,0.000178,2]
[422931500,1779649839000,-151.51,0.000178,2]
[422931502,1779649839000,-1420.0,0.000178,14]
[422931506,1779649839000,-151.15,0.000178,2]
[422931510,1779649839000,-150.95,0.000178,2]
[422931508,1779649839000,-5197.0,0.000178,10]
[422931512,1779649839000,-200.39602644,0.00017802,14]
[422931514,1779649839000,-471.92,0.00017803,2]
[422931387,1779649839000,-500.0,0.00017684,2]
[422931516,1779649839000,-260.43719251,0.00017808,2]
[422931486,1779649839000,-132279.49006628,0.000178,10]
[422931448,1779649839000,-471.92,0.00017714,2]
[422931481,1779649839000,-471.92,0.00017797,2]
[422931452,1779649839000,-471.92,0.00017728,2]
[422931391,1779649839000,-500.0,0.00017684,2]
[422931458,1779649839000,-511.54722999,0.00017744,2]
[422931393,1779649839000,-500.0,0.00017684,2]
[422931409,1779649839000,-1617.659,0.000177,2]
[422931399,1779649839000,-500.0,0.00017684,2]
[422931401,1779649839000,-500.0,0.00017684,2]
[422931403,1779649839000,-511.54722999,0.00017685,2]
[422931405,1779649839000,-150.66,0.000177,2]
[422931407,1779649839000,-150.66,0.000177,2]
[422931411,1779649839000,-1914.1744,0.000177,2]
[422931413,1779649839000,-1220.564,0.000177,2]
[422931426,1779649839000,-1510.955,0.000177,2]
[422931415,1779649839000,-1220.56,0.000177,2]
[422931428,1779649839000,-1510.95,0.000177,2]
[422931430,1779649839000,-1508.705,0.000177,2]
[422931397,1779649839000,-500.0,0.00017684,2]
[422931416,1779649839000,-1307.485,0.000177,2]
[422931424,1779649839000,-2036.55,0.000177,2]
[422931444,1779649839000,-471.92,0.000177,2]
[422931442,1779649839000,-2036.64,0.000177,2]
[422931456,1779649839000,-471.92,0.00017741,2]
[422931440,1779649839000,-478.38,0.000177,2]
[422931438,1779649839000,-2246.43,0.000177,2]
[422931454,1779649839000,-471.92,0.00017734,2]
[422931435,1779649839000,-2246.436,0.000177,2]
[422931433,1779649839000,-1508.7,0.000177,2]
[422931418,1779649839000,-1307.485,0.000177,2]
[422931420,1779649839000,-1307.48,0.000177,2]
[422931436,1779649839000,-2246.436,0.000177,2]
[422931422,1779649839000,-478.36,0.000177,2]
[422931592,1779649840000,-23331.19413543,0.00018,18]
[422931595,1779649840000,-1135.16628384,0.00018,2]
[422931606,1779649840000,-1989.66057976,0.00018,2]
[422931581,1779649840000,-13091.57764638,0.00018,2]
[422931590,1779649840000,-500.0,0.00018,2]
[422931599,1779649840000,-470.63483502,0.00018,2]
[422931602,1779649840000,-162.62213893,0.00018,2]
[422931600,1779649840000,-700.83937688,0.00018,2]
[422931588,1779649840000,-1238.78,0.00018,2]
[422931587,1779649840000,-1684.12312694,0.00018,2]
[422931597,1779649840000,-511.43525877,0.00018,2]
[422931585,1779649840000,-481.75203294,0.00018,8]
[422931604,1779649840000,-766.74137484,0.00018,2]
[422931593,1779649840000,-766.70313116,0.00018,10]
[422931619,1779649840000,-183.122513,0.00018,2]
[422931610,1779649840000,-396.26619834,0.00018,2]
[422931612,1779649840000,-435.28284325,0.00018,2]
[422931615,1779649840000,-183.122513,0.00018,2]
[422931613,1779649840000,-559.96456016,0.00018,2]
[422931617,1779649840000,-183.122513,0.00018,2]
[422931621,1779649840000,-183.122513,0.00018,2]
[422931625,1779649840000,-180.0,0.00018,2]
[422931627,1779649840000,-180.0,0.00018,2]
[422931629,1779649840000,-180.0,0.00018,2]
[422931623,1779649840000,-180.0,0.00018,2]
[422931632,1779649840000,-151.0,0.00018,2]
[422931630,1779649840000,-214.664679,0.00018,2]
[422931636,1779649840000,-151.0,0.00018,2]
[422931579,1779649840000,-637.01867708,0.00018,2]
[422931608,1779649840000,-1860.28198548,0.00018,2]
[422931578,1779649840000,-250.0,0.00018,2]
[422931525,1779649840000,-4686.03,0.00017808,2]
[422931574,1779649840000,-511.54722999,0.00017963,2]
[422931635,1779649840000,-151.0,0.00018,2]
[422931527,1779649840000,-4686.03,0.00017808,2]
[422931521,1779649840000,-163.69,0.00017808,2]
[422931518,1779649840000,-2300.32332613,0.00017808,2]
[422931523,1779649840000,-4686.03,0.00017808,2]
[422931533,1779649840000,-4686.03,0.00017808,2]
[422931531,1779649840000,-693.20620206,0.00017808,2]
[422931520,1779649840000,-444.0,0.00017808,2]
[422931529,1779649840000,-3992.82379794,0.00017808,2]
[422931535,1779649840000,-4686.03,0.00017808,2]
[422931537,1779649840000,-4686.03,0.00017808,2]
[422931541,1779649840000,-4686.03,0.00017808,2]
[422931539,1779649840000,-4686.03,0.00017808,2]
[422931549,1779649840000,-4473.02,0.00017808,7]
[422931583,1779649840000,-1000.0,0.00018,2]
[422931552,1779649840000,-4473.07,0.00017808,7]
[422931550,1779649840000,-4473.02,0.00017808,7]
[422931543,1779649840000,-4473.02,0.00017808,7]
[422931545,1779649840000,-4473.02,0.00017808,7]
[422931556,1779649840000,-3834.02,0.00017808,2]
[422931554,1779649840000,-3834.02,0.00017808,2]
[422931558,1779649840000,-151.0,0.00017808,2]
[422931560,1779649840000,-161.73758927,0.00017808,7]
[422931562,1779649840000,-155.39661827,0.00017808,2]
[422931564,1779649840000,-161.85645628,0.00017809,5]
[422931566,1779649840000,-471.92,0.0001781,2]
[422931568,1779649840000,-471.92,0.00017817,2]
[422931572,1779649840000,-200.0,0.00017923,2]
[422931570,1779649840000,-471.92,0.00017824,2]
[422931576,1779649840000,-5000.0,0.00018,10]
[422931547,1779649840000,-4473.02,0.00017808,7]
[422931638,1779649840000,-151.0,0.00018,2]
[422931659,1779649840000,-358.013785,0.00018,2]
[422931640,1779649840000,-473.482074,0.00018,2]
[422931711,1779649840000,-233.236131,0.00018,2]
[422931713,1779649840000,-233.236131,0.00018,2]
[422931730,1779649840000,-1193.996695,0.00018,2]
[422931734,1779649840000,-151.0,0.00018,2]
[422931715,1779649840000,-273.347317,0.00018,2]
[422931726,1779649840000,-1193.996695,0.00018,2]
[422931720,1779649840000,-273.347317,0.00018,2]
[422931724,1779649840000,-151.0,0.00018,2]
[422931728,1779649840000,-1193.996695,0.00018,2]
[422931722,1779649840000,-151.0,0.00018,2]
[422931717,1779649840000,-273.347317,0.00018,2]
[422931736,1779649840000,-151.0,0.00018,2]
[422931732,1779649840000,-1193.996695,0.00018,2]
[422931737,1779649840000,-151.0,0.00018,2]
[422931719,1779649840000,-273.347317,0.00018,2]
[422931739,1779649840000,-151.0,0.00018,2]
[422931751,1779649840000,-511.54722999,0.00018011,2]
[422931741,1779649840000,-151.0,0.00018,2]
[422931756,1779649840000,-511.54722999,0.00018074,2]
[422931747,1779649840000,-845.944054,0.00018,2]
[422931762,1779649840000,-511.54722999,0.00018103,2]
[422931758,1779649840000,-161.85645628,0.00018083,5]
[422931754,1779649840000,-511.54722999,0.00018047,2]
[422931749,1779649840000,-845.944054,0.00018,2]
[422931753,1779649840000,-449.7702174,0.00018015,2]
[422931745,1779649840000,-845.944054,0.00018,2]
[422931743,1779649840000,-845.944054,0.00018,2]
[422931764,1779649840000,-511.54722999,0.00018103,2]
[422931766,1779649840000,-295.86248465,0.00018149,2]
[422931709,1779649840000,-233.236131,0.00018,2]
[422931705,1779649840000,-349.413512,0.00018,2]
[422931760,1779649840000,-1218.5201,0.000181,2]
[422931694,1779649840000,-166.774375,0.00018,2]
[422931707,1779649840000,-233.236131,0.00018,2]
[422931651,1779649840000,-211.04,0.00018,2]
[422931653,1779649840000,-358.013785,0.00018,2]
[422931644,1779649840000,-473.482074,0.00018,2]
[422931655,1779649840000,-358.013785,0.00018,2]
[422931650,1779649840000,-211.04,0.00018,2]
[422931646,1779649840000,-473.482074,0.00018,2]
[422931642,1779649840000,-473.482074,0.00018,2]
[422931657,1779649840000,-358.013785,0.00018,2]
[422931661,1779649840000,-151.0,0.00018,2]
[422931663,1779649840000,-319.464,0.00018,2]
[422931671,1779649840000,-152.086849,0.00018,2]
[422931665,1779649840000,-319.464,0.00018,2]
[422931667,1779649840000,-319.464,0.00018,2]
[422931676,1779649840000,-151.0,0.00018,2]
[422931648,1779649840000,-211.04,0.00018,2]
[422931669,1779649840000,-319.464,0.00018,2]
[422931672,1779649840000,-10000.0,0.00018,2]
[422931695,1779649840000,-166.774375,0.00018,2]
[422931690,1779649840000,-847.459036,0.00018,2]
[422931701,1779649840000,-349.413512,0.00018,2]
[422931697,1779649840000,-166.774375,0.00018,2]
[422931688,1779649840000,-847.459036,0.00018,2]
[422931703,1779649840000,-349.413512,0.00018,2]
[422931686,1779649840000,-847.459036,0.00018,2]
[422931674,1779649840000,-10000.0,0.00018,2]
[422931699,1779649840000,-349.413512,0.00018,2]
[422931678,1779649840000,-151.0,0.00018,2]
[422931692,1779649840000,-166.774375,0.00018,2]
[422931682,1779649840000,-151.0,0.00018,2]
[422931684,1779649840000,-847.459036,0.00018,2]
[422931680,1779649840000,-151.0,0.00018,2]
[422931854,1779649841000,-151.0,0.00018467,2]
[422931831,1779649841000,-151.47,0.00018467,2]
[422931829,1779649841000,-150.79,0.00018448,2]
[422931830,1779649841000,-150.79,0.00018448,2]
[422931828,1779649841000,-150.79,0.00018421,2]
[422931836,1779649841000,-151.0,0.00018467,2]
[422931834,1779649841000,-180.0,0.00018467,2]
[422931832,1779649841000,-180.0,0.00018467,2]
[422931840,1779649841000,-151.0,0.00018467,2]
[422931833,1779649841000,-180.0,0.00018467,2]
[422931838,1779649841000,-151.0,0.00018467,2]
[422931835,1779649841000,-180.0,0.00018467,2]
[422931859,1779649841000,-151.0,0.00018467,2]
[422931848,1779649841000,-1193.996695,0.00018467,2]
[422931852,1779649841000,-1193.996695,0.00018467,2]
[422931843,1779649841000,-151.0,0.00018467,2]
[422931856,1779649841000,-151.0,0.00018467,2]
[422931827,1779649841000,-151.47,0.00018421,2]
[422931845,1779649841000,-151.0,0.00018467,2]
[422931846,1779649841000,-151.0,0.00018467,2]
[422931842,1779649841000,-151.0,0.00018467,2]
[422931858,1779649841000,-151.0,0.00018467,2]
[422931861,1779649841000,-299.576339,0.00018467,2]
[422931850,1779649841000,-1193.996695,0.00018467,2]
[422931862,1779649841000,-845.944054,0.00018467,2]
[422931853,1779649841000,-1193.996695,0.00018467,2]